bitfinex/quotes_SOLUSD_20250125
["timestamp","ask_amount","ask_price","bid_price","bid_amount"]
[1737822968687,0.063,255.98,255.85,43.776884]
[1737822970389,0.063,255.98,255.9,20.0]
[1737822970691,0.063,255.98,255.91,23.776884]
[1737822972408,0.063,255.98,255.92,3.9074]
[1737822973374,0.063,255.98,255.9,23.776884]
[1737822973580,0.063,255.98,255.93,20.0]
[1737822975697,0.063,255.98,255.95,23.776884]
[1737822976903,0.063,255.98,255.95,3.9069]
[1737822977103,0.063,255.98,255.97,43.776884]
[1737822978483,0.063,255.98,255.97,47.683584]
[1737822980285,0.063,255.98,255.97,43.776884]
[1737822980604,0.063,255.98,255.9,3.9077]
[1737822980997,0.063,255.98,255.91,23.776884]
[1737822981990,0.063,255.98,255.97,20.0]
[1737822982898,0.063,255.98,255.97,43.776884]
[1737822983217,0.063,255.98,255.97,23.776884]
[1737822983415,0.063,255.98,255.97,47.683584]
[1737822985718,0.063,255.98,255.97,27.683584]
[1737822990212,0.063,255.98,255.93,3.9073]
[1737822990494,0.063,255.98,255.89,8.0762]
[1737822990694,0.063,255.98,255.91,3.9074]
[1737822991995,0.063,255.98,255.89,8.0762]
[1737822991996,0.063,255.98,255.92,20.0]
[1737822994423,0.063,255.98,255.97,20.0]
[1737822994602,0.063,255.98,255.93,3.9073]
[1737822994801,0.063,255.98,255.89,3.9079]
[1737822995920,0.063,255.98,255.94,23.776884]
[1737822996296,0.063,255.98,255.97,43.776884]
[1737823004024,0.063,255.98,255.97,23.776884]
[1737823007777,0.063,256.05,256.01,20.0]
[1737823007926,0.063,256.05,255.98,38.449684]
[1737823008225,0.063,256.05,256.01,20.0]
[1737823009212,0.063,256.05,255.98,3.9065]
[1737823009724,0.063,256.05,256.01,20.0]
[1737823011115,0.063,256.05,255.97,3.9065]
[1737823011725,2.7968,256.05,255.9,3.9077]
[1737823011928,0.39077393,256.04,255.9,3.9077]
[1737823012449,0.99077393,256.04,255.85,3.9085]
[1737823012634,6.5943,256.03,255.86,23.776884]
[1737823012944,0.39077393,256.02,255.85,3.9085]
[1737823013535,0.39077393,256.02,255.86,23.776884]
[1737823013931,2.7342,256.01,255.85,23.776884]
[1737823014543,1.5213,255.99,255.84,3.9086]
[1737823014742,0.39077393,255.98,255.84,3.9086]
[1737823014938,2.7346,255.97,255.84,3.9086]
[1737823015541,20.39077393,255.96,255.83,3.9717]
[1737823015744,20.39077393,255.96,255.83,0.063]
[1737823015936,6.5943,255.94,255.83,0.063]
[1737823016136,6.5943,255.94,255.83,3.9717]
[1737823016137,0.39077393,255.93,255.83,3.9717]
[1737823016327,6.5943,255.94,255.83,3.9717]
[1737823017758,6.5943,255.94,255.83,27.748584]
[1737823017954,6.5943,255.94,255.84,23.776884]
[1737823018139,6.5943,255.94,255.85,3.9085]
[1737823018344,6.5943,255.94,255.86,20.0]
[1737823019052,0.6,255.97,255.86,20.0]
[1737823019247,0.39077393,255.96,255.86,20.0]
[1737823019556,0.6,255.97,255.85,3.9085]
[1737823019761,1.5213,255.99,255.87,23.776884]
[1737823020260,1.5213,255.99,255.88,3.908]
[1737823020771,1.5213,255.99,255.92,20.0]
[1737823021837,1.5213,255.99,255.93,3.9073]
[1737823022253,0.063,256.05,255.93,3.9073]
[1737823024660,2.7968,256.05,255.93,3.9073]
[1737823024961,2.7968,256.05,255.94,23.776884]
[1737823024962,0.063,256.05,255.94,23.776884]
[1737823025967,0.063,256.05,255.93,3.9073]
[1737823026361,0.063,256.05,255.94,23.776884]
[1737823026744,0.063,256.05,255.91,20.0]
[1737823026962,0.063,256.05,255.94,20.0]
[1737823027667,0.063,256.05,255.92,43.776884]
[1737823028561,0.39077393,256.04,255.88,13.6782]
[1737823028775,21.6424,256.02,255.88,3.908]
[1737823029069,1.6424,256.02,255.85,13.6798]
[1737823029239,1.6424,256.02,255.89,20.0]
[1737823029441,0.39077393,256.01,255.89,20.0]
[1737823029752,0.39077393,256.01,255.85,3.9085]
[1737823030467,0.39077393,256.01,255.89,20.0]
[1737823030949,0.39077393,256.01,255.85,3.9085]
[1737823031149,2.7343,256.0,255.85,3.9085]
[1737823031454,0.39077393,255.99,255.85,3.9085]
[1737823032373,2.7345,255.98,255.86,20.0]
[1737823032673,0.39077393,255.97,255.86,20.0]
[1737823032845,8.9074,255.96,255.84,0.063]
[1737823033040,0.99077393,255.95,255.84,0.063]
[1737823033247,20.0,255.93,255.84,0.063]
[1737823033574,0.99077393,255.92,255.84,0.063]
[1737823034170,2.7353,255.91,255.84,0.063]
[1737823034373,0.39077393,255.9,255.84,0.063]
[1737823034758,0.6,255.93,255.84,3.9716]
[1737823034952,8.3074,255.96,255.84,3.9716]
[1737823035757,8.3074,255.96,255.85,23.776884]
[1737823035950,8.3074,255.96,255.88,20.0]
[1737823036373,8.3074,255.96,255.89,3.9079]
[1737823037071,8.3074,255.96,255.84,0.063]
[1737823037247,8.3074,255.96,255.85,3.9084]
[1737823037565,7.9563,256.02,255.91,20.0]
[1737823037794,7.9563,256.02,255.92,23.776884]
[1737823037946,10.6904,256.02,255.91,20.0]
[1737823038144,10.6904,256.02,255.88,20.0]
[1737823038563,7.9563,256.02,255.9,23.776884]
[1737823039950,7.9563,256.02,255.89,43.776884]
[1737823041672,7.9563,256.02,255.9,13.6771]
[1737823041865,0.063,256.05,255.94,23.776884]
[1737823043171,0.063,256.05,255.96,23.776884]
[1737823045074,0.063,256.05,255.97,3.9067]
[1737823048050,0.063,256.05,255.98,23.776884]
[1737823048380,0.063,256.05,256.01,20.0]
[1737823048570,0.063,256.05,255.97,3.9067]
[1737823048957,0.063,256.05,255.98,23.776884]
[1737823049263,0.063,256.05,255.89,1.544]
[1737823049462,2.7968,256.05,255.9,3.9077]
[1737823049652,0.39077393,256.04,255.9,3.9077]
[1737823049854,8.1103,256.03,255.9,3.9077]
[1737823050059,0.39077393,256.02,255.9,3.9077]
[1737823050259,2.7342,256.01,255.91,23.776884]
[1737823050572,10.8444,256.03,255.91,23.776884]
[1737823051087,8.1103,256.03,255.91,23.776884]
[1737823052793,2.7341,256.02,255.92,20.0]
[1737823053281,8.1103,256.03,255.92,20.0]
[1737823053780,8.1103,256.03,255.93,23.776884]
[1737823054288,8.1103,256.03,255.95,23.776884]
[1737823054489,1.5628,256.03,255.95,23.776884]
[1737823055162,1.5628,256.03,255.92,20.0]
[1737823055357,4.2968,256.03,255.92,23.9073]
[1737823056295,0.39077393,256.02,255.9,3.9077]
[1737823056461,20.39077393,256.02,255.88,23.971]
[1737823056675,20.39077393,256.02,255.88,3.971]
[1737823057192,1.5628,256.03,255.93,23.776884]
[1737823058494,1.5628,256.03,255.95,23.776884]
[1737823058672,4.68757393,256.03,255.91,20.0]
[1737823058876,4.2968,256.03,255.91,20.0]
[1737823059204,4.2968,256.03,255.92,43.776884]
[1737823059774,4.2968,256.03,255.92,47.684184]
[1737823059995,0.39077393,256.02,255.92,20.0]
[1737823060192,20.0,256.0,255.88,0.063]
[1737823060389,0.39077393,255.99,255.89,23.776884]
[1737823061287,0.39077393,256.02,255.89,23.776884]
[1737823061490,4.2968,256.03,255.89,23.776884]
[1737823061875,4.2968,256.03,255.91,23.776884]
[1737823063198,4.2968,256.03,255.9,23.776884]
[1737823064399,4.2968,256.03,255.91,3.9076]
[1737823065699,20.0,255.98,255.88,0.063]
[1737823065996,0.39077393,255.97,255.88,0.063]
[1737823067602,3.12557393,255.97,255.88,0.063]
[1737823067832,7.6314,256.01,255.88,27.747884]
[1737823068107,7.6314,256.01,255.88,37.518084]
[1737823068281,1.563,256.01,255.88,37.518084]
[1737823068990,0.063,256.05,255.92,23.776884]
[1737823069800,2.7969,256.05,255.93,3.9073]
[1737823069987,2.7969,256.05,255.94,23.776884]
[1737823070704,0.03,256.01,255.94,23.776884]
[1737823071502,0.03,256.01,255.96,23.776884]
[1737823071911,0.03,256.01,255.94,47.683984]
[1737823072114,0.03,256.01,255.94,23.9071]
[1737823072286,0.03,256.01,255.95,20.0]
[1737823073605,0.03,256.01,255.93,3.9072]
[1737823073809,0.03,256.01,255.96,20.0]
[1737823075801,0.03,256.01,255.97,23.776884]
[1737823078507,0.03,256.01,255.97,27.683484]
[1737823079617,0.03,256.01,255.97,23.776884]
[1737823079912,0.03,256.01,255.89,3.9079]
[1737823080115,0.03,256.01,255.91,20.0]
[1737823081314,0.03,256.01,255.92,27.684284]
[1737823082714,0.03,256.01,255.96,23.776884]
[1737823083416,0.03,256.01,255.97,3.9067]
[1737823087216,0.03,256.01,255.95,23.9068]
[1737823087402,0.03,256.01,255.89,3.9079]
[1737823087610,2.7343,256.0,255.89,3.9079]
[1737823087843,6.73907393,255.99,255.88,0.063]
[1737823088002,20.0,255.96,255.88,0.063]
[1737823088203,0.39077393,255.95,255.88,0.063]
[1737823089818,2.735,255.94,255.88,0.063]
[1737823090025,0.39077393,255.93,255.88,0.063]
[1737823090357,0.99077393,255.93,255.88,0.063]
[1737823090497,20.0,255.91,255.88,0.063]
[1737823090810,0.39077393,255.9,255.88,0.063]
[1737823091207,0.6,255.92,255.88,0.063]
[1737823093110,0.39077393,255.91,255.88,0.063]
[1737823093719,20.0,255.89,255.88,0.063]
[1737823093925,20.39077393,255.89,255.88,0.063]
[1737823094341,20.0,255.86,255.84,0.063]
[1737823094515,0.39077393,255.85,255.84,0.063]
[1737823095241,2.735,255.94,255.84,0.063]
[1737823095452,1.5674,255.95,255.84,3.9716]
[1737823095938,20.0,255.93,255.84,3.9716]
[1737823096136,0.39077393,255.92,255.84,0.063]
[1737823096523,20.99077393,255.92,255.84,0.063]
[1737823096839,20.99077393,255.92,255.88,0.063]
[1737823097232,0.99077393,255.92,255.88,0.063]
[1737823097437,3.72607393,255.92,255.88,0.063]
[1737823097815,20.0,255.91,255.88,0.063]
[1737823098024,20.0,255.87,255.84,0.063]
[1737823098333,23.776884,255.85,255.84,0.063]
[1737823099137,31.692584,255.85,255.84,0.063]
[1737823099328,31.692584,255.85,255.72,0.063]
[1737823099329,20.0,255.79,255.72,0.063]
[1737823099636,0.99077393,255.78,255.72,0.063]
[1737823100814,0.99077393,255.78,255.72,3.9734]
[1737823102220,8.30647393,255.85,255.72,3.9734]
[1737823102420,1.5674,255.85,255.73,23.776884]
[1737823102623,6.3153,255.91,255.73,30.072484]
[1737823102851,0.6,255.9,255.73,30.072484]
[1737823103524,20.0,255.88,255.75,23.776884]
[1737823104047,2.98,255.91,255.75,23.776884]
[1737823104225,20.0,255.89,255.75,23.776884]
[1737823104424,2.98,255.91,255.75,23.776884]
[1737823105042,2.98,255.91,255.77,23.776884]
[1737823106326,2.98,255.91,255.75,27.686884]
[1737823106723,25.7153,255.91,255.75,27.686884]
[1737823106929,2.7348,255.96,255.79,23.776884]
[1737823107337,20.0,255.95,255.79,23.776884]
[1737823107844,2.735,255.94,255.8,3.9093]
[1737823108038,2.735,255.94,255.81,23.776884]
[1737823108845,0.39077393,255.97,255.81,23.776884]
[1737823109027,0.39077393,255.97,255.75,9.7751]
[1737823109028,20.0,255.95,255.82,20.0]
[1737823109343,0.03,255.9,255.82,20.0]
[1737823110352,0.03,255.9,255.83,3.9088]
[1737823110854,0.03,255.9,255.82,23.9089]
[1737823111347,0.03,255.9,255.82,3.9089]
[1737823111944,0.03,255.9,255.79,20.0]
[1737823112533,20.0,255.87,255.65,6.2956]
[1737823112742,20.0,255.87,255.7,0.063]
[1737823112743,20.0,255.84,255.7,0.063]
[1737823112929,0.39077393,255.83,255.7,3.9737]
[1737823114053,2.7361,255.84,255.73,23.776884]
[1737823114257,3.12687393,255.84,255.73,23.776884]
[1737823114428,3.12687393,255.84,255.72,0.063]
[1737823114634,2.98,255.88,255.73,23.776884]
[1737823114840,2.98,255.88,255.76,20.0]
[1737823115138,5.7156,255.88,255.73,23.776884]
[1737823115744,2.98,255.88,255.73,23.776884]
[1737823116051,0.03,255.9,255.75,23.776884]
[1737823116255,0.03,255.9,255.79,23.776884]
[1737823116851,0.42077393,255.9,255.79,23.776884]
[1737823117760,23.15617393,255.9,255.77,3.9097]
[1737823118144,20.0,255.88,255.72,0.063]
[1737823118336,0.99077393,255.87,255.72,0.063]
[1737823118846,0.6,255.86,255.72,0.063]
[1737823119042,0.39077393,255.85,255.72,0.063]
[1737823119347,0.6,255.84,255.72,0.063]
[1737823119553,37.8892,255.82,255.72,0.063]
[1737823119760,2.7367,255.78,255.72,0.063]
[1737823120050,3.12747393,255.78,255.72,0.063]
[1737823120953,3.72747393,255.78,255.72,0.063]
[1737823122337,0.6,255.78,255.72,0.063]
[1737823123944,2.7662,255.83,255.72,27.750284]
[1737823124243,22.7662,255.83,255.72,27.750284]
[1737823125350,2.7662,255.83,255.72,27.750284]
[1737823125543,0.03,255.83,255.72,27.750284]
[1737823125853,0.03,255.83,255.72,33.788984]
[1737823127474,0.03,255.83,255.76,23.776884]
[1737823128065,0.03,255.83,255.72,10.0121]
[1737823130872,0.42077393,255.83,255.72,10.0121]
[1737823131050,0.03,255.83,255.72,3.9734]
[1737823131244,0.03,255.83,255.73,23.776884]
[1737823131969,0.03,255.83,255.72,3.9734]
[1737823132474,2.7661,255.83,255.72,3.9734]
[1737823132647,0.03,255.83,255.73,23.776884]
[1737823134077,0.03,255.83,255.75,23.776884]
[1737823136056,0.03,255.83,255.72,0.063]
[1737823136264,0.03,255.83,255.74,20.0]
[1737823136471,0.03,255.83,255.75,23.776884]
[1737823137277,0.03,255.83,255.77,23.776884]
[1737823137917,8.2543,255.82,255.72,0.063]
[1737823138183,0.39077393,255.81,255.72,0.063]
[1737823139191,20.0,255.79,255.72,0.063]
[1737823139370,3.12747393,255.78,255.72,0.063]
[1737823142299,8.2543,255.82,255.72,0.063]
[1737823142798,0.03,255.83,255.73,23.776884]
[1737823144491,0.03,255.83,255.81,23.776884]
[1737823144898,0.03,255.83,255.77,43.776884]
[1737823146011,0.03,255.83,255.82,20.0]
[1737823146306,0.03,255.83,255.78,13.6836]
[1737823146307,0.03,255.9,255.87,23.776884]
[1737823149095,0.03,255.9,255.89,43.776884]
[1737823150494,0.03,255.9,255.8,6.285]
[1737823150999,0.03,255.9,255.79,43.776884]
[1737823151200,0.03,255.9,255.82,23.776884]
[1737823151400,0.03,255.9,255.76,5.5542]
[1737823151589,0.03,255.9,255.76,1.6445]
[1737823151991,0.03,255.9,255.77,23.776884]
[1737823152192,0.03,255.9,255.76,1.6445]
[1737823152399,0.03,255.9,255.74,10.1951]
[1737823152600,20.42077393,255.9,255.75,23.776884]
[1737823152803,20.42077393,255.9,255.74,6.285]
[1737823152977,20.42077393,255.9,255.75,23.776884]
[1737823153182,20.03,255.9,255.75,23.776884]
[1737823154487,2.7355,255.89,255.77,23.776884]
[1737823155502,0.39077393,255.88,255.74,10.1951]
[1737823155807,0.39077393,255.88,255.74,3.9101]
[1737823157202,0.39077393,255.88,255.72,0.063]
[1737823157504,20.0,255.84,255.72,0.063]
[1737823157689,0.99077393,255.83,255.72,0.063]
[1737823158025,1.6362,255.82,255.72,0.063]
[1737823158185,0.39077393,255.81,255.72,0.063]
[1737823158881,0.6,255.83,255.76,20.0]
[1737823158882,0.03,255.83,255.76,20.0]
[1737823159079,0.03,255.83,255.77,23.776884]
[1737823159292,0.03,255.83,255.74,23.91]
[1737823159910,0.03,255.83,255.75,23.776884]
[1737823160492,0.03,255.83,255.77,23.776884]
[1737823161419,0.03,255.83,255.73,3.9102]
[1737823163795,0.03,255.83,255.75,3.91]
[1737823165927,0.03,255.83,255.75,23.91]
[1737823166823,0.03,255.83,255.77,20.0]
[1737823167015,0.03,255.83,255.78,23.776884]
[1737823167613,0.03,255.83,255.82,23.776884]
[1737823169723,0.03,255.83,255.82,27.685784]
[1737823174022,0.03,255.9,255.86,23.776884]
[1737823177029,0.03,255.9,255.86,27.685184]
[1737823180107,0.03,255.9,255.89,43.776884]
[1737823181931,0.03,255.9,255.89,47.684784]
[1737823182645,0.03,255.9,255.89,43.776884]
[1737823182942,0.03,255.9,255.88,3.9079]
[1737823183354,0.03,255.9,255.89,23.776884]
[1737823189225,0.03,255.9,255.84,9.7714]
[1737823189434,0.03,255.9,255.87,20.0]
[1737823189930,0.03,255.9,255.88,23.776884]
[1737823190331,0.03,255.9,255.85,23.776884]
[1737823190634,0.03,255.9,255.87,23.776884]
[1737823191716,0.03,255.9,255.88,3.908]
[1737823192541,0.03,255.9,255.87,23.776884]
[1737823192744,0.03,255.9,255.79,6.4625]
[1737823193036,0.03,255.9,255.8,3.9093]
[1737823193239,0.03,255.9,255.77,1.5001]
[1737823193438,0.03,255.9,255.78,3.9094]
[1737823193746,0.03,255.9,255.8,20.0]
[1737823194245,0.03,255.9,255.84,20.0]
[1737823194432,0.03,255.9,255.89,23.776884]
[1737823195349,0.03,255.9,255.88,20.0]
[1737823195560,0.03,255.9,255.89,23.776884]
[1737823197049,0.03,255.9,255.89,20.0]
[1737823197350,0.03,255.9,255.89,23.9079]
[1737823198746,1.6007,256.03,255.89,35.2292]
[1737823198928,1.6007,256.03,255.94,23.776884]
[1737823199945,2.7341,256.02,255.93,20.0]
[1737823200155,2.7341,256.02,255.89,3.9079]
[1737823200459,1.6007,256.03,255.94,23.776884]
[1737823200829,1.6007,256.03,255.96,23.776884]
[1737823201155,0.42077393,256.01,255.85,3.9085]
[1737823201739,6.3583,256.0,255.83,3.9087]
[1737823202053,6.3583,256.0,255.78,6.6391]
[1737823202054,20.0,255.97,255.79,3.9094]
[1737823202242,0.39077393,255.96,255.8,53.776884]
[1737823202444,1.5846,255.94,255.73,3.9103]
[1737823202652,6.3583,255.92,255.73,3.9103]
[1737823202865,0.39077393,255.91,255.73,13.6862]
[1737823203045,6.3583,255.92,255.76,20.0]
[1737823203366,6.3583,255.92,255.74,23.776884]
[1737823203570,6.3583,255.92,255.74,24.776884]
[1737823203863,6.3583,255.92,255.82,23.776884]
[1737823204859,0.6,255.98,255.82,23.776884]
[1737823204860,6.74907393,256.0,255.85,20.0]
[1737823205162,1.5846,255.99,255.86,23.776884]
[1737823205353,4.3191,255.99,255.88,23.776884]
[1737823206641,0.39077393,255.98,255.86,20.0]
[1737823207366,0.39077393,255.98,255.85,3.9083]
[1737823207553,20.0,255.97,255.86,23.776884]
[1737823207754,2.7349,255.95,255.86,23.776884]
[1737823208067,2.7349,255.95,255.79,3.9094]
[1737823208450,2.7349,255.95,255.82,23.776884]
[1737823208765,2.7349,255.95,255.8,23.776884]
[1737823208973,2.7349,255.95,255.84,23.776884]
[1737823209463,2.7349,255.95,255.79,13.683]
[1737823209464,2.7349,255.95,255.79,3.9094]
[1737823209779,2.7349,255.95,255.8,23.776884]
[1737823210142,0.39077393,255.94,255.8,23.776884]
[1737823210573,20.0,255.92,255.79,3.9094]
[1737823210772,0.39077393,255.91,255.79,3.9094]
[1737823210940,20.0,255.92,255.8,23.776884]
[1737823211363,0.6,255.93,255.8,23.776884]
[1737823212069,2.7349,255.95,255.84,23.776884]
[1737823212240,3.3347,255.97,255.85,20.0]
[1737823212551,2.7347,255.97,255.86,23.776884]
[1737823213549,2.7347,255.97,255.82,23.776884]
[1737823215576,2.7347,255.97,255.84,20.0]
[1737823217175,1.5846,255.99,255.86,20.0]
[1737823217655,1.5846,255.99,255.88,23.776884]
[1737823218001,1.5846,255.99,255.92,23.776884]
[1737823218179,0.03,256.01,255.92,23.776884]
[1737823219279,0.03,256.01,255.96,23.776884]
[1737823219752,0.03,256.01,255.98,23.776884]
[1737823221274,0.03,256.01,255.96,27.683684]
[1737823223184,0.03,256.01,255.96,3.9068]
[1737823223371,0.03,256.01,255.96,27.683684]
[1737823223560,0.03,256.01,255.97,23.776884]
[1737823225159,0.03,256.01,255.93,3.9073]
[1737823225363,0.03,256.01,255.95,20.0]
[1737823225585,0.03,256.01,255.96,20.0]
[1737823226585,0.03,256.01,255.97,3.9067]
[1737823226779,0.03,256.01,255.98,23.776884]
[1737823228001,0.03,256.01,255.97,3.9067]
[1737823228994,0.03,256.01,255.94,20.0]
[1737823229190,0.03,256.01,255.92,3.9074]
[1737823229387,0.03,256.01,255.93,23.776884]
[1737823230094,0.03,256.01,255.93,43.776884]
[1737823231889,0.03,256.01,255.93,45.422984]
[1737823232082,0.03,256.01,255.98,20.0]
[1737823232569,0.03,256.01,255.99,23.776884]
[1737823233172,0.03,256.01,255.98,23.776884]
[1737823234264,0.03,256.01,255.93,20.0]
[1737823234596,0.03,256.01,255.94,47.683984]
[1737823235988,0.03,256.01,255.94,57.451884]
[1737823240087,0.0001,256.01,256.0,20.0]
[1737823240291,0.0001,256.01,256.0,43.776884]
[1737823240598,0.03,256.09,256.04,20.0]
[1737823240808,0.0001,256.09,256.08,20.0]
[1737823240972,0.0001,256.09,256.08,43.776884]
[1737823241974,1.6368,256.24,256.09,23.776884]
[1737823242215,1.6155,256.31,256.17,20.0]
[1737823242507,1.6155,256.31,256.15,23.776884]
[1737823242508,2.7318,256.24,256.08,3.905]
[1737823242697,1.6155,256.2,256.08,3.905]
[1737823242893,1.6155,256.2,256.09,23.776884]
[1737823243200,1.6155,256.2,256.08,3.905]
[1737823243791,1.6155,256.2,256.12,20.0]
[1737823243988,1.6155,256.2,256.13,23.776884]
[1737823244707,1.6155,256.2,256.17,23.776884]
[1737823244914,6.3202,256.22,256.17,23.776884]
[1737823245088,1.6155,256.26,256.17,23.776884]
[1737823245714,1.6155,256.26,256.16,20.0]
[1737823245890,1.6155,256.26,256.17,23.776884]
[1737823246096,1.6155,256.26,256.17,27.680484]
[1737823246806,0.0001,256.18,256.17,27.680484]
[1737823247019,1.6155,256.32,256.25,23.776884]
[1737823248050,6.3202,256.36,256.29,23.776884]
[1737823248320,1.6155,256.39,256.29,23.776884]
[1737823249491,1.6155,256.39,256.26,3.9022]
[1737823249689,0.39077393,256.46,256.34,20.0]
[1737823249897,1.6155,256.52,256.33,1.0]
[1737823250088,1.6155,256.52,256.36,20.0]
[1737823250590,1.6155,256.52,256.41,23.776884]
[1737823250787,1.6155,256.52,256.45,23.776884]
[1737823251316,7.9357,256.61,256.44,20.0]
[1737823251499,7.9357,256.61,256.46,20.0]
[1737823251697,7.9357,256.61,256.47,20.0]
[1737823251911,7.9357,256.61,256.48,23.776884]
[1737823252331,7.9357,256.61,256.49,3.8987]
[1737823252699,7.9357,256.61,256.5,23.776884]
[1737823253046,9.0481,256.61,256.48,3.8989]
[1737823253203,6.3202,256.61,256.42,20.0]
[1737823253406,6.3202,256.61,256.43,20.0]
[1737823253709,6.3202,256.61,256.44,1.0]
[1737823253911,6.3202,256.61,256.48,20.0]
[1737823254109,6.3202,256.61,256.52,20.0]
[1737823254328,2.7279,256.6,256.43,20.0]
[1737823254630,3.11867393,256.6,256.38,3.9003]
[1737823255123,3.11867393,256.6,256.41,23.776884]
[1737823255328,3.11867393,256.6,256.38,3.9003]
[1737823255528,2.7279,256.6,256.39,24.776884]
[1737823255713,2.7279,256.6,256.47,23.776884]
[1737823256420,3.11867393,256.6,256.41,3.8999]
[1737823256635,3.11867393,256.6,256.41,23.8999]
[1737823256832,0.39077393,256.6,256.45,23.776884]
[1737823257025,9.0481,256.61,256.49,23.776884]
[1737823257603,6.3202,256.61,256.49,23.776884]
[1737823257802,6.3202,256.61,256.41,13.6499]
[1737823258033,0.39077393,256.6,256.41,3.8999]
[1737823258246,0.42077393,256.6,256.39,3.9002]
[1737823258406,9.5482,256.59,256.39,3.9002]
[1737823259112,20.0,256.56,256.33,3.9012]
[1737823259316,0.39077393,256.55,256.33,3.9012]
[1737823259725,0.39077393,256.55,256.34,23.776884]
[1737823260131,0.39077393,256.55,256.33,3.9012]
[1737823260330,6.028,256.51,256.31,3.9014]
[1737823260719,0.39077393,256.5,256.31,3.9014]
[1737823261339,0.39077393,256.5,256.23,6.3565]
[1737823261340,21.6366,256.47,256.23,6.3565]
[1737823261521,0.39077393,256.46,256.19,3.9033]
[1737823261841,1.6366,256.47,256.22,1.0]
[1737823262339,9.94377393,256.46,256.23,3.9027]
[1737823262713,20.0,256.43,256.23,3.9027]
[1737823262920,6.3238,256.41,256.19,3.9033]
[1737823263119,0.39077393,256.4,256.19,3.9033]
[1737823263321,6.9238,256.41,256.19,13.6616]
[1737823263740,20.0,256.38,256.19,3.9033]
[1737823263912,0.39077393,256.37,256.19,3.9033]
[1737823264244,2.7305,256.36,256.19,3.9033]
[1737823264438,2.02737393,256.35,256.18,0.063]
[1737823264828,2.02737393,256.35,256.18,3.9664]
[1737823265941,2.7307,256.34,256.18,3.9664]
[1737823266524,20.0,256.31,256.18,0.063]
[1737823267038,2.7307,256.34,256.19,23.776884]
[1737823267839,0.39077393,256.33,256.19,23.776884]
[1737823268044,0.39077393,256.33,256.19,3.9032]
[1737823269027,0.39077393,256.33,256.18,0.063]
[1737823269028,20.0,256.31,256.18,0.063]
[1737823269233,0.39077393,256.3,256.18,0.063]
[1737823269435,20.0,256.26,256.18,0.063]
[1737823269743,0.39077393,256.25,256.18,0.063]
[1737823269918,2.7318,256.24,256.18,0.063]
[1737823270318,6.3238,256.29,256.18,3.9664]
[1737823270739,6.3238,256.29,256.19,23.776884]
[1737823271849,6.3238,256.29,256.21,23.776884]
[1737823272017,4.3672,256.35,256.25,23.776884]
[1737823273347,6.3184,256.36,256.25,27.679184]
[1737823276349,9.0489,256.36,256.25,23.776884]
[1737823277149,0.39077393,256.35,256.25,23.776884]